bitfinex/quotes_SOLUSD_20250710
["timestamp","ask_amount","ask_price","bid_price","bid_amount"]
[1752134768075,0.06,158.21,158.2,44.30722977]
[1752134771766,0.06,158.21,158.19,38.01611726]
[1752134772153,0.06,158.21,158.19,44.33755137]
[1752134772373,0.06,158.21,158.2,5.76611726]
[1752134773967,0.06,158.21,158.2,6.32111251]
[1752134774176,0.06,158.21,158.2,12.08722977]
[1752134783184,0.06,158.21,158.19,0.03]
[1752134783482,5.82611726,158.21,158.19,0.03]
[1752134783669,5.76611726,158.2,158.19,0.03]
[1752134786566,12.08722977,158.2,158.19,0.03]
[1752134788584,25.11292294,158.2,158.19,0.03]
[1752134788827,30.8790402,158.2,158.19,0.03]
[1752134791304,0.06,158.21,158.19,5.79611726]
[1752134791662,0.06,158.21,158.19,0.03]
[1752134791864,0.06,158.21,158.19,5.79611726]
[1752134792776,0.06,158.21,158.19,12.11762614]
[1752134794289,0.06,158.21,158.19,5.79611726]
[1752134794492,0.06,158.21,158.2,5.76611726]
[1752134796314,0.06,158.21,158.2,12.08722977]
[1752134797589,0.06,158.21,158.2,44.28722977]
[1752134803277,0.06,158.21,158.2,38.52111251]
[1752134803504,0.06,158.21,158.2,44.28722977]
[1752134811088,1e-08,158.21,158.2,44.28722977]
[1752134819200,0.1,158.25,158.23,26.0]
[1752134819386,0.1,158.25,158.24,37.94611726]
[1752134820399,0.1,158.25,158.24,43.71223452]
[1752134821688,0.1,158.25,158.24,50.03174918]
[1752134822421,0.1,158.25,158.24,44.26563192]
[1752134824443,0.1,158.25,158.23,38.0859272]
[1752134824612,0.1,158.25,158.23,64.49980994]
[1752134824954,0.1,158.25,158.23,6.31980994]
[1752134825109,0.1,158.25,158.22,6.320154]
[1752134825434,5.76611726,158.24,158.2,6.32103367]
[1752134825740,5.76611726,158.23,158.2,38.50103367]
[1752134826902,6.41924791,158.25,158.19,5.79611726]
[1752134827100,5.76611726,158.24,158.19,5.79611726]
[1752134827313,5.76611726,158.24,158.19,37.97611726]
[1752134828127,5.76611726,158.23,158.19,44.29745477]
[1752134828336,5.76611726,158.21,158.19,0.03]
[1752134829530,5.76611726,158.2,158.19,0.03]
[1752134829713,24.55792769,158.2,158.19,0.03]
[1752134832015,30.8790402,158.2,158.19,0.03]
[1752134832439,25.11292294,158.2,158.19,0.03]
[1752134832629,30.8790402,158.2,158.19,0.03]
[1752134833440,25.11292294,158.2,158.19,0.03]
[1752134833615,30.8790402,158.2,158.19,0.03]
[1752134835860,13.36261726,158.21,158.19,0.03]
[1752134836031,7.5965,158.21,158.19,0.03]
[1752134836213,5.76611726,158.22,158.19,0.03]
[1752134837248,24.41576612,158.24,158.2,5.76611726]
[1752134837432,5.76611726,158.24,158.2,5.76611726]
[1752134837630,24.41576612,158.24,158.2,5.76611726]
[1752134837847,33.23102241,158.25,158.2,5.76611726]
[1752134838140,5.76611726,158.24,158.2,5.76611726]
[1752134838547,32.67786612,158.25,158.21,5.76611726]
[1752134838723,0.1,158.25,158.22,5.76611726]
[1752134838918,0.1,158.25,158.22,12.08633461]
[1752134839518,0.1,158.25,158.23,5.76611726]
[1752134840148,0.1,158.25,158.22,6.32021735]
[1752134840337,0.1,158.25,158.22,12.08633461]
[1752134840539,0.1,158.25,158.23,5.76611726]
[1752134841732,0.1,158.25,158.22,12.08633461]
[1752134841940,0.1,158.25,158.23,5.76611726]
[1752134842145,0.1,158.25,158.24,5.76611726]
[1752134843066,0.1,158.25,158.24,12.08563192]
[1752134857860,0.1,158.25,158.23,6.31991404]
[1752134858167,0.1,158.25,158.24,5.76611726]
[1752134858472,0.1,158.25,158.24,37.92611726]
[1752134859661,0.1,158.25,158.24,43.69223452]
[1752134860666,0.1,158.25,158.24,50.01174918]
[1752134865976,0.1,158.25,158.24,6.31951466]
[1752134866176,0.1,158.25,158.24,44.24563192]
[1752134869886,0.1,158.25,158.24,38.47951466]
[1752134870054,0.1,158.25,158.24,44.24563192]
[1752134872188,0.1,158.25,158.24,50.01174918]
[1752134872863,0.1,158.25,158.24,44.24563192]
[1752134875084,0.1,158.25,158.24,38.47951466]
[1752134875290,0.1,158.25,158.24,44.24563192]
[1752134880561,0.1,158.26,158.24,50.01174918]
[1752134880764,0.1,158.26,158.25,5.76611726]
[1752134881789,0.1,158.26,158.25,31.76611726]
[1752134882092,0.1,158.26,158.25,38.08523258]
[1752134882685,0.1,158.27,158.25,38.08523258]
[1752134882890,0.1,158.27,158.26,37.92611726]
[1752134883902,0.1,158.27,158.26,44.24483329]
[1752134893999,0.1,158.27,158.25,6.31898403]
[1752134894305,0.1,158.27,158.26,64.28]
[1752134894985,13.71741726,158.27,158.21,0.03]
[1752134895183,5.76611726,158.25,158.22,32.96]
[1752134895576,5.76611726,158.26,158.22,32.96]
[1752134896500,7.9513,158.27,158.22,39.28026995]
[1752134896700,5.76611726,158.25,158.22,39.28026995]
[1752134898398,7.9513,158.27,158.22,39.28026995]
[1752134898588,0.1,158.27,158.24,5.76611726]
[1752134898796,0.1,158.27,158.25,32.96]
[1752134900382,0.1,158.27,158.25,38.72611726]
[1752134900810,0.1,158.27,158.25,45.04508789]
[1752134901301,0.06,158.26,158.25,45.04508789]
[1752134910616,0.06,158.26,158.25,39.27897063]
[1752134910798,0.06,158.26,158.25,45.04508789]
[1752134911388,0.1,158.27,158.25,45.04508789]
[1752134911584,0.1,158.27,158.26,5.76611726]
[1752134913215,0.1,158.27,158.26,12.08483329]
[1752134914408,0.1,158.27,158.26,44.86483329]
[1752134914999,0.1,158.27,158.26,12.08483329]
[1752134915210,0.1,158.27,158.26,44.86483329]
[1752134921522,0.1,158.28,158.26,44.86483329]
[1752134921926,0.1,158.28,158.27,5.76611726]
[1752134923103,0.1,158.28,158.27,12.08443406]
[1752134923600,1e-08,158.28,158.27,12.08443406]
[1752134924200,1e-08,158.28,158.27,38.08443406]
[1752134925810,1e-08,158.28,158.27,70.76443406]
[1752134926010,1e-08,158.28,158.27,70.78443406]
[1752134926923,1e-08,158.28,158.27,38.08443406]
[1752134927105,1e-08,158.28,158.27,70.76443406]
[1752134930829,1e-08,158.28,158.27,38.08443406]
[1752134931002,1e-08,158.28,158.27,70.74443406]
[1752134931399,0.1,158.29,158.27,70.74443406]
[1752134931636,0.1,158.29,158.28,5.76611726]
[1752134932724,0.1,158.29,158.28,12.08403487]
[1752134937639,0.1,158.29,158.28,6.31791761]
[1752134937839,0.1,158.29,158.28,12.08403487]
[1752134938217,0.1,158.29,158.28,44.68403487]
[1752134938617,0.1,158.29,158.28,12.08403487]
[1752134938832,0.1,158.29,158.28,44.68403487]
[1752134939334,0.1,158.29,158.28,12.08403487]
[1752134939538,0.1,158.29,158.28,44.68403487]
[1752134941242,0.1,158.29,158.28,38.91791761]
[1752134941452,0.1,158.29,158.28,44.66403487]
[1752134945055,0.1,158.29,158.28,44.69403487]
[1752134945224,0.1,158.29,158.28,12.11403487]
[1752134945428,0.1,158.29,158.28,0.03]
[1752134945926,0.1,158.29,158.28,32.59]
[1752134946126,0.1,158.29,158.28,0.03]
[1752134946344,0.1,158.29,158.28,32.59]
[1752134948344,0.1,158.29,158.28,0.03]
[1752134948549,36.75294291,158.29,158.28,0.03]
[1752134948940,38.82707578,158.29,158.28,0.03]
[1752134952837,38.82707578,158.29,158.25,0.03]
[1752134953136,24.54715731,158.26,158.25,0.03]
[1752134953350,24.54715731,158.26,158.22,0.03]
[1752134953650,18.79181043,158.23,158.22,0.03]
[1752134953854,24.54715731,158.23,158.22,0.03]
[1752134955033,30.86707135,158.23,158.22,0.03]
[1752134956158,25.11172447,158.23,158.22,0.03]
[1752134956471,30.86707135,158.23,158.22,0.03]
[1752134961272,25.11172447,158.23,158.22,0.03]
[1752134961491,30.86707135,158.23,158.22,0.03]
[1752134963075,25.11172447,158.23,158.22,0.03]
[1752134963272,30.86707135,158.23,158.22,0.03]
[1752134964157,25.11172447,158.23,158.22,0.03]
[1752134964362,30.86707135,158.23,158.22,0.03]
[1752134964563,18.79181043,158.22,158.21,0.03]
[1752134964773,203.84715731,158.22,158.21,0.03]
[1752134965767,210.16747079,158.22,158.21,0.03]
[1752134969250,204.41212391,158.22,158.21,0.03]
[1752134969479,210.16747079,158.22,158.21,0.03]
[1752134970473,204.41212391,158.22,158.21,0.03]
[1752134970663,203.26747079,158.22,158.21,0.03]
[1752134970857,30.86747079,158.22,158.21,1e-08]
[1752134973763,89.58530922,158.22,158.21,1e-08]
[1752134973963,56.72530922,158.22,158.21,1e-08]
[1752134974198,56.86747079,158.22,158.21,1e-08]
[1752134976570,89.70747079,158.22,158.21,1e-08]
[1752134977672,56.86747079,158.22,158.21,1e-08]
[1752134979004,24.54715731,158.22,158.21,1e-08]
[1752134980973,18.79181043,158.22,158.21,1e-08]
[1752134981175,24.54715731,158.22,158.21,1e-08]
[1752134983076,6.31951466,158.24,158.21,1e-08]
[1752134983294,12.07486154,158.24,158.21,1e-08]
[1752134984071,146.4,158.25,158.21,1e-08]
[1752134984272,18.64964886,158.27,158.22,5.75534688]
[1752134984478,5.75534688,158.26,158.22,5.75534688]
[1752134984686,24.40499574,158.27,158.22,5.75534688]
[1752134984884,24.40499574,158.27,158.23,5.75534688]
[1752134985778,5.75534688,158.28,158.23,6.3198563]
[1752134985980,5.75534688,158.28,158.24,5.75534688]
[1752134986901,5.75534688,158.28,158.24,12.07469857]
[1752134987699,18.89181043,158.29,158.25,5.75534688]
[1752134988076,24.64715731,158.29,158.25,5.75534688]
[1752134988778,18.89181043,158.29,158.25,12.07433136]
[1752134989075,24.64715731,158.29,158.25,12.07433136]
[1752134989277,0.1,158.29,158.26,5.75534688]
[1752134990500,0.1,158.29,158.27,5.75534688]
[1752134991799,0.1,158.29,158.26,6.31836354]
[1752134992002,5.85534688,158.29,158.25,5.75534688]
[1752134992902,5.85534688,158.29,158.25,12.07432387]
[1752134993888,0.1,158.29,158.25,12.07432387]
[1752134994093,5.85534688,158.29,158.25,12.07432387]
[1752134996003,5.85534688,158.29,158.24,5.75534688]
[1752134996209,0.1,158.29,158.27,5.75534688]
[1752134996506,0.1,158.29,158.23,22.11969916]
[1752134996507,0.1,158.29,158.28,5.75534688]
[1752134997707,0.1,158.29,158.28,12.07326449]
[1752135006023,0.1,158.29,158.28,6.31791761]
[1752135006225,0.1,158.29,158.28,12.07326449]
[1752135009696,0.1,158.29,158.28,6.31791761]
[1752135009908,0.1,158.29,158.28,12.07326449]
[1752135010308,0.1,158.29,158.28,44.77326449]
[1752135010820,0.1,158.29,158.28,32.7]
[1752135011021,0.1,158.29,158.28,38.45534688]
[1752135011220,0.1,158.29,158.28,38.47534688]
[1752135012918,0.1,158.29,158.28,46.38126449]
[1752135027637,0.1,158.29,158.28,38.33534688]
[1752135028732,0.1,158.29,158.28,44.65326449]
[1752135031640,0.1,158.32,158.31,26.0]
[1752135031817,0.1,158.32,158.31,70.07069376]
[1752135032020,0.1,158.32,158.28,23.63071164]
[1752135032229,0.1,158.32,158.31,5.75534688]
[1752135032430,0.1,158.32,158.31,38.29534688]
[1752135032723,0.1,158.32,158.31,12.07206723]
[1752135033133,0.1,158.32,158.31,44.61206723]
[1752135037846,1e-08,158.35,158.34,26.0]
[1752135038151,1e-08,158.35,158.34,64.25534688]
[1752135039355,1e-08,158.36,158.34,152.95534688]
[1752135039556,1e-08,158.36,158.35,5.75534688]
[1752135040262,1e-08,158.36,158.35,12.0704716]
[1752135040965,0.1,158.42,158.35,59.57606858]
[1752135041171,0.1,158.42,158.4,5.75534688]
[1752135041340,0.1,158.42,158.4,38.23534688]
[1752135042041,0.1,158.42,158.4,43.99069376]
[1752135042367,0.1,158.42,158.4,76.30382507]
[1752135044366,1e-08,158.43,158.41,18.64964886]
[1752135044562,0.1,158.45,158.44,26.0]
[1752135044741,0.1,158.48,158.44,64.23534688]
[1752135046053,0.1,158.48,158.47,5.75534688]
[1752135046361,0.1,158.48,158.47,44.52568953]
[1752135050459,0.1,158.48,158.47,76.28103641]
[1752135050659,0.1,158.48,158.47,64.77034265]
[1752135050956,0.1,158.48,158.47,76.28103641]
[1752135051151,188.84,158.63,158.5,26.0]
[1752135051152,162.16008461,158.63,158.5,26.0]
[1752135051361,18.64964886,158.6,158.57,5.75534688]
[1752135052273,24.40499574,158.61,158.57,5.75534688]
[1752135052972,24.95402409,158.62,158.57,5.75534688]
[1752135053183,12.05972211,158.62,158.57,5.75534688]
[1752135053776,5.75534688,158.61,158.57,5.75534688]
[1752135054398,0.14216157,158.62,158.58,5.75534688]
[1752135054680,7.8663,158.68,158.61,5.75534688]
[1752135054880,14.16841323,158.68,158.64,5.75534688]
[1752135055088,14.16841323,158.68,158.63,5.75534688]
[1752135055381,5.75534688,158.67,158.63,5.75534688]
[1752135055575,5.75534688,158.67,158.62,5.75534688]
[1752135056071,5.75534688,158.67,158.62,12.05965869]
[1752135056378,12.05782264,158.67,158.62,12.05965869]
[1752135056675,5.75534688,158.65,158.61,32.4]
[1752135056880,7.8663,158.68,158.64,5.75534688]
[1752135057184,5.75534688,158.71,158.67,5.75534688]
[1752135057472,26.0,158.72,158.67,5.75534688]
[1752135057677,5.75534688,158.71,158.64,32.4]
[1752135057863,5.75534688,158.71,158.67,5.75534688]
[1752135058257,12.05616645,158.71,158.67,5.75534688]
[1752135058871,12.05616645,158.71,158.66,5.75534688]
[1752135061280,6.30081957,158.71,158.66,5.75534688]
[1752135061476,5.75534688,158.7,158.66,5.75534688]
[1752135062381,5.75534688,158.69,158.65,38.09534688]
[1752135062584,5.75534688,158.67,158.54,10.0]
[1752135062760,18.79181043,158.71,158.63,5.75534688]
[1752135062961,5.75534688,158.67,158.63,5.75534688]
[1752135063763,12.05813271,158.66,158.62,38.09534688]
[1752135064865,5.75534688,158.63,158.58,38.09534688]
[1752135065066,18.64964886,158.65,158.58,38.09534688]
[1752135065067,5.75534688,158.62,158.58,38.09534688]
[1752135065381,5.75534688,158.61,158.57,5.75534688]
[1752135065587,5.75534688,158.6,158.56,1.5794]
[1752135065767,5.75534688,158.64,158.52,6.5061]
[1752135065768,5.75534688,158.58,158.52,6.5061]
[1752135065962,5.75534688,158.58,158.53,5.75534688]
[1752135066164,5.75534688,158.57,158.51,1.5143]
[1752135066486,5.75534688,158.58,158.53,31.75534688]
[1752135066792,18.64964886,158.61,158.53,5.75534688]
[1752135066793,12.06171,158.57,158.53,5.75534688]
[1752135066971,5.75534688,158.56,158.52,38.13534688]
[1752135067166,5.75534688,158.56,158.53,26.0]
[1752135067376,12.06171,158.57,158.53,26.0]
[1752135067574,5.75534688,158.58,158.54,5.75534688]
[1752135067790,5.75534688,158.57,158.52,38.13534688]
[1752135067992,5.75534688,158.57,158.52,64.13534688]
[1752135068284,5.75534688,158.56,158.52,26.0]
[1752135068484,5.75534688,158.56,158.52,58.4]
[1752135068685,18.64964886,158.6,158.52,70.46363799]
[1752135068992,5.75534688,158.56,158.52,70.46363799]
[1752135069494,18.64964886,158.6,158.52,70.46363799]
[1752135069705,5.75534688,158.57,158.52,70.46363799]
[1752135069867,6.30556781,158.59,158.52,70.46363799]
[1752135070072,5.75534688,158.59,158.54,5.75534688]
[1752135071379,5.75534688,158.59,158.54,12.06251388]
[1752135071571,5.75534688,158.59,158.55,5.75534688]
[1752135072584,5.75534688,158.58,158.53,6.3078684]
[1752135072793,5.75534688,158.58,158.54,32.4]
[1752135073291,6.30559019,158.59,158.54,38.70751775]
[1752135073495,5.75534688,158.59,158.54,44.46286463]
[1752135073671,5.75534688,158.58,158.54,6.30751775]
[1752135076589,5.75534688,158.58,158.54,5.75534688]
[1752135078100,5.75534688,158.59,158.54,5.75534688]
[1752135078976,5.75534688,158.59,158.55,6.30715862]
[1752135079584,5.75534688,158.58,158.55,6.30715862]
[1752135082503,5.75534688,158.57,158.53,38.66795433]
[1752135083492,0.06,158.59,158.56,5.75534688]
[1752135083700,0.06,158.59,158.58,1.5895]
[1752135083891,0.06,158.59,158.58,7.34484688]
[1752135085110,0.06,158.59,158.58,13.65081232]
[1752135086708,0.06,158.59,158.56,1.6493]
[1752135086907,0.06,158.59,158.57,64.86]
[1752135088687,5.81534688,158.59,158.57,64.86]
[1752135089084,0.06,158.59,158.52,1.6493]
[1752135089279,5.75534688,158.53,158.49,96.51178961]
[1752135089480,0.06,158.59,158.52,5.75534688]
[1752135089696,0.06,158.59,158.54,5.75534688]
[1752135089697,5.81534688,158.59,158.54,5.75534688]
[1752135089885,5.75534688,158.56,158.55,32.54]
[1752135090089,0.06,158.59,158.55,32.54]
[1752135090285,5.75534688,158.56,158.54,6.30744746]
[1752135090506,5.75534688,158.55,158.54,6.30744746]
[1752135090811,5.75534688,158.56,158.54,38.92744746]
[1752135092016,5.75534688,158.58,158.54,38.92744746]
[1752135092589,0.06,158.59,158.54,38.92744746]
[1752135092791,5.75534688,158.58,158.54,44.68279434]
[1752135094110,5.75534688,158.58,158.54,38.92744746]
[1752135094308,0.06,158.59,158.54,44.68279434]
[1752135094816,5.75534688,158.58,158.53,6.30767819]
[1752135095015,5.81534688,158.59,158.55,38.33534688]
[1752135096024,0.06,158.59,158.58,5.75534688]
[1752135096195,0.06,158.59,158.58,32.56]
[1752135096396,5.81534688,158.59,158.53,88.7]
[1752135096639,5.81534688,158.59,158.54,32.56]
[1752135096927,5.81534688,158.59,158.54,38.31534688]
[1752135097594,5.81534688,158.59,158.54,32.56]
[1752135097795,5.81534688,158.59,158.54,44.622632]
[1752135098998,5.81534688,158.59,158.54,12.062632]
[1752135099198,5.75534688,158.55,158.49,90.2023]
[1752135099397,5.75534688,158.53,158.52,26.0]
[1752135099600,24.40499574,158.58,158.52,64.35534688]
[1752135099797,24.40499574,158.58,158.53,5.75534688]
[1752135099798,5.75534688,158.57,158.53,5.75534688]
[1752135100003,5.75534688,158.57,158.52,64.35534688]
[1752135101008,5.75534688,158.57,158.53,6.30787349]
[1752135103216,18.64964886,158.58,158.53,6.30787349]
[1752135103421,5.75534688,158.57,158.53,6.30787349]
[1752135104151,5.75534688,158.57,158.53,12.06322037]
[1752135105920,5.75534688,158.57,158.53,6.30787349]
[1752135106227,5.75534688,158.57,158.53,12.06322037]
[1752135108721,24.40499574,158.58,158.53,12.06322037]
[1752135108899,0.06,158.59,158.57,5.75534688]
[1752135109215,0.06,158.59,158.58,38.31534688]
[1752135109616,0.06,158.59,158.58,44.62131232]
[1752135118916,0.06,158.59,158.58,6.30596544]
[1752135119327,0.06,158.59,158.56,12.06210772]
[1752135119530,0.06,158.59,158.57,32.5]
[1752135120223,0.06,158.59,158.56,12.06210772]
[1752135120421,0.06,158.59,158.57,38.80634055]
[1752135121913,0.06,158.59,158.56,5.75534688]
[1752135122117,0.06,158.59,158.57,32.5]
[1752135123037,0.06,158.59,158.57,38.8060599]
[1752135123423,0.06,158.59,158.58,32.48]
[1752135125042,0.06,158.59,158.58,38.78596544]
[1752135125338,0.06,158.59,158.58,44.54131232]
[1752135126538,0.06,158.59,158.58,38.78596544]
[1752135126748,0.06,158.59,158.58,44.54131232]
[1752135127035,0.06,158.59,158.58,38.78596544]
[1752135127241,0.06,158.59,158.58,44.54131232]
[1752135128840,0.06,158.59,158.58,38.06131232]
[1752135129045,0.06,158.59,158.58,70.50131232]
[1752135131238,0.06,158.59,158.58,38.06131232]
[1752135131540,0.06,158.59,158.58,70.48131232]
[1752135131845,0.06,158.59,158.58,64.72596544]
[1752135132044,0.06,158.59,158.58,70.48131232]
[1752135133038,0.06,158.59,158.58,38.06131232]
[1752135133346,0.06,158.59,158.58,70.46131232]
[1752135133841,0.06,158.59,158.58,64.70596544]
[1752135134031,0.06,158.59,158.58,38.06131232]
[1752135134230,0.06,158.59,158.58,70.46131232]
[1752135135153,0.06,158.59,158.53,85.3056685]
[1752135135454,0.06,158.59,158.58,5.75534688]
[1752135135657,0.06,158.59,158.58,38.15534688]
[1752135136449,0.06,158.59,158.58,5.75534688]
[1752135136624,0.06,158.59,158.58,38.15534688]
[1752135136823,0.06,158.59,158.58,44.46131232]
[1752135141547,0.06,158.59,158.58,12.06131232]
[1752135141732,0.06,158.59,158.58,44.42131232]
[1752135141933,0.06,158.59,158.58,12.06131232]
[1752135142150,0.06,158.59,158.58,44.42131232]
[1752135142925,0.06,158.59,158.58,12.06131232]
[1752135143132,0.06,158.59,158.58,44.42131232]
[1752135143434,0.06,158.59,158.58,44.40131232]
[1752135144049,0.06,158.59,158.58,12.06131232]
[1752135144551,0.06,158.59,158.58,38.64596544]
[1752135145130,0.06,158.59,158.58,6.30596544]
[1752135145330,0.06,158.59,158.58,38.64596544]
[1752135146734,0.06,158.59,158.56,12.06210772]
[1752135146937,5.81534688,158.59,158.54,85.3056685]
[1752135147135,5.81534688,158.59,158.55,38.09534688]
[1752135148558,5.81534688,158.59,158.56,6.30676084]
[1752135148951,5.81534688,158.59,158.57,32.34]
[1752135151442,5.81534688,158.59,158.54,6.30755645]
[1752135151747,5.75534688,158.57,158.55,32.34]
[1752135151940,5.75534688,158.57,158.53,0.03]
[1752135152134,5.75534688,158.55,158.54,32.34]
[1752135152662,5.75534688,158.56,158.54,32.34]
[1752135153449,5.75534688,158.56,158.53,0.03]
[1752135153766,5.75534688,158.56,158.54,32.34]
[1752135156475,0.20216157,158.59,158.54,38.64747345]
[1752135156641,5.75534688,158.58,158.54,38.64747345]
[1752135158068,0.06,158.59,158.54,38.64747345]
[1752135158268,5.75534688,158.57,158.54,38.64747345]
[1752135159672,0.06,158.59,158.54,38.64747345]
[1752135159866,5.75534688,158.57,158.54,38.64747345]
[1752135161983,5.75534688,158.58,158.54,44.40282033]
[1752135162155,0.06,158.59,158.55,5.75534688]
[1752135162357,0.06,158.59,158.56,32.34]
[1752135162560,0.06,158.59,158.57,5.75534688]
[1752135162965,0.06,158.59,158.56,32.34]
[1752135163149,0.06,158.59,158.56,38.09534688]
[1752135163877,0.06,158.59,158.56,32.34]
[1752135164062,0.06,158.59,158.57,6.30636312]
[1752135165360,5.81534688,158.59,158.54,26.0]
[1752135165545,5.81534688,158.59,158.56,32.34]
[1752135165747,5.75534688,158.58,158.56,32.34]
[1752135167266,5.75534688,158.57,158.53,0.03]
[1752135167450,5.75534688,158.56,158.53,0.03]
[1752135167659,5.75534688,158.56,158.53,32.37]
[1752135168272,5.75534688,158.56,158.53,6.33781763]
[1752135168474,5.75534688,158.56,158.53,38.67781763]
[1752135169760,5.75534688,158.56,158.53,32.37]
[1752135170876,18.64964886,158.57,158.53,32.37]
[1752135171186,5.75534688,158.56,158.53,32.37]
[1752135172080,6.44818895,158.58,158.53,32.37]
[1752135172081,5.75534688,158.58,158.53,44.43313005]
[1752135173087,5.75534688,158.57,158.53,38.67778317]
[1752135173257,5.75534688,158.57,158.53,44.43313005]
[1752135173795,5.75534688,158.57,158.53,38.67778317]
[1752135173982,5.75534688,158.57,158.53,44.43313005]
[1752135174871,5.75534688,158.54,158.53,0.03]
[1752135176987,24.40499574,158.54,158.53,0.03]
[1752135181461,14.12773964,158.57,158.53,0.03]
[1752135181462,5.75534688,158.56,158.53,0.03]
[1752135181702,0.06,158.59,158.55,5.75534688]
[1752135182197,24.46499574,158.59,158.54,6.30755645]
[1752135182397,24.46499574,158.59,158.55,5.75534688]
[1752135182987,24.46499574,158.59,158.54,6.30755645]
[1752135183191,5.81534688,158.59,158.55,5.75534688]
[1752135183715,5.81534688,158.59,158.54,12.06290333]
[1752135185601,0.06,158.59,158.54,12.06290333]
[1752135185915,5.81534688,158.59,158.54,12.06290333]
[1752135187717,0.06,158.59,158.54,12.06290333]
[1752135188013,5.81534688,158.59,158.54,12.06290333]
[1752135188924,5.81534688,158.59,158.54,6.30755645]
[1752135189092,5.81534688,158.59,158.55,5.75534688]
[1752135190315,5.81534688,158.59,158.56,6.30676084]
[1752135191304,0.06,158.59,158.56,6.30676084]
[1752135191505,5.81534688,158.59,158.56,6.30676084]
[1752135192220,5.75534688,158.59,158.56,6.30676084]
[1752135195619,5.75534688,158.58,158.56,6.30676084]
[1752135196112,18.79181043,158.61,158.55,6.30715862]
[1752135196300,27.5505,158.63,158.55,27.83040206]
[1752135196626,5.75534688,158.63,158.58,5.75534688]
[1752135197995,5.75534688,158.63,158.59,6.30556781]
[1752135198524,25.09524309,158.65,158.59,6.30556781]
[1752135198525,5.75534688,158.62,158.59,6.30556781]
[1752135199228,5.75534688,158.62,158.57,21.52122153]
[1752135199229,5.75534688,158.6,158.57,6.30636312]
[1752135199421,5.75534688,158.6,158.57,38.64636312]
[1752135200324,5.75534688,158.6,158.57,6.30636312]
[1752135201027,5.75534688,158.59,158.57,6.30636312]
[1752135201423,5.75534688,158.58,158.57,6.30636312]
[1752135202008,5.75534688,158.59,158.57,6.30636312]
[1752135208245,5.75534688,158.59,158.55,6.30715862]
[1752135208430,5.75534688,158.59,158.56,32.32]
[1752135209423,5.75534688,158.59,158.57,6.30636312]
[1752135210828,5.75534688,158.58,158.56,38.6267367]
[1752135211137,5.75534688,158.57,158.54,6.30755645]
[1752135211339,5.75534688,158.55,158.53,0.03]
[1752135211517,5.75534688,158.54,158.53,0.03]
[1752135213040,6.30650714,158.57,158.53,0.03]
[1752135213244,5.75534688,158.54,158.53,0.03]
[1752135216032,6.30556781,158.59,158.53,0.03]
[1752135216234,5.75534688,158.54,158.53,0.03]
[1752135216522,5.75534688,158.54,158.52,38.62764851]
[1752135216929,5.75534688,158.54,158.52,32.32]
[1752135218143,6.30556781,158.59,158.52,32.32]
[1752135218337,5.75534688,158.55,158.52,32.32]
[1752135219344,5.75534688,158.55,158.52,38.62800063]
[1752135220822,6.30571832,158.59,158.52,44.38334751]
[1752135221033,18.64964886,158.59,158.52,44.38334751]
[1752135221240,5.75534688,158.59,158.54,5.75534688]
[1752135221441,5.75534688,158.59,158.56,6.30676084]
[1752135224751,0.14216157,158.56,158.49,6.30954634]
[1752135224932,5.75534688,158.5,158.49,6.30954634]
[1752135225128,5.75534688,158.5,158.48,6.30979245]
[1752135226049,5.75534688,158.5,158.47,0.03]
[1752135226249,5.75534688,158.5,158.47,32.35]
[1752135227452,18.79181043,158.53,158.47,32.35]
[1752135227750,5.75534688,158.5,158.47,32.35]
[1752135228136,5.75534688,158.5,158.48,6.30994447]
[1752135228535,5.75534688,158.5,158.48,38.62994447]
[1752135233046,5.75534688,158.49,158.48,32.32]
[1752135234449,5.75534688,158.49,158.47,0.03]
[1752135234753,5.75534688,158.49,158.47,32.35]
[1752135235546,5.75534688,158.48,158.47,0.03]
[1752135235747,5.89750845,158.48,158.47,0.03]